bitfinex/quotes_ETHUSD_20220219
["timestamp","ask_amount","ask_price","bid_price","bid_amount"]
[1645239320522,3.25557707,2820.9,2820.8,1.47634066]
[1645239321322,4.60612472,2820.9,2820.8,1.47634066]
[1645239321520,5.36352472,2820.9,2820.8,1.47634066]
[1645239322321,4.01297707,2820.9,2820.8,1.47634066]
[1645239322588,3.25557707,2820.9,2820.8,1.47634066]
[1645239323373,3.39760307,2820.9,2820.8,1.47634066]
[1645239323780,5.5,2820.8,2819.8,0.00443679]
[1645239323979,0.67487313,2820.2,2819.8,0.00443679]
[1645239324177,1.8650806,2820.2,2819.8,0.00443679]
[1645239324376,0.24865707,2820.1,2819.8,0.00443679]
[1645239324884,0.52,2820.0,2819.8,0.00443679]
[1645239325077,2.02317707,2819.9,2819.8,0.00443679]
[1645239325278,2.32317707,2819.9,2819.8,0.00443679]
[1645239325578,3.62317707,2819.9,2819.8,0.00443679]
[1645239327122,3.76522207,2819.9,2819.8,0.00443679]
[1645239327522,3.62317707,2819.9,2819.6,6.25341528]
[1645239327724,0.24865707,2819.8,2819.7,1.24559163]
[1645239327928,0.24865707,2819.8,2819.7,0.00440238]
[1645239328128,0.24865707,2819.8,2819.7,1.24055297]
[1645239328324,0.24865707,2819.8,2819.7,1.24495535]
[1645239329324,0.24865707,2820.0,2819.7,2.30048377]
[1645239329524,0.24865707,2819.9,2819.8,1.24055297]
[1645239329722,0.24865707,2820.0,2819.8,1.24495535]
[1645239329923,0.24727651,2820.0,2819.8,0.00440238]
[1645239330174,1.13441651,2820.0,2819.8,0.00440238]
[1645239330373,0.88714,2820.0,2819.8,0.00440238]
[1645239331175,1.029173,2820.0,2819.8,0.00440238]
[1645239331378,0.88714,2820.0,2819.8,0.00440238]
[1645239334432,1.029178,2820.0,2819.8,0.00440238]
[1645239334832,0.88714,2820.0,2819.8,0.00440238]
[1645239335929,0.88714,2820.0,2819.7,0.01305795]
[1645239336134,1.77431,2820.0,2819.7,0.01305795]
[1645239336329,2.77431,2820.0,2819.7,0.01305795]
[1645239336538,2.77431,2820.0,2819.8,1.13756087]
[1645239336732,1.7744462,2820.2,2819.9,3.5]
[1645239336733,0.88708,2820.2,2819.9,3.5]
[1645239336934,5.16644085,2820.6,2819.9,3.5]
[1645239336935,1.69444277,2820.7,2819.9,3.50440238]
[1645239337132,1.99444277,2820.7,2819.9,3.50440238]
[1645239337331,2.99444277,2820.7,2819.9,3.50440238]
[1645239337773,2.31956964,2820.7,2819.9,3.50440238]
[1645239338372,2.46158164,2820.7,2819.9,3.50440238]
[1645239338773,2.31956964,2820.7,2819.9,3.50440238]
[1645239339178,2.31956964,2820.7,2820.3,0.94802992]
[1645239339374,2.31956964,2820.7,2820.4,0.00440238]
[1645239339576,3.88139287,2820.7,2820.1,0.00440238]
[1645239339978,3.20651974,2820.7,2820.1,0.00440238]
[1645239340176,3.20652964,2820.7,2820.1,0.00440238]
[1645239340376,2.31956964,2820.7,2820.1,0.00440238]
[1645239340878,1.01956964,2820.7,2820.1,0.00440238]
[1645239341325,1.01956964,2820.7,2820.4,0.92417888]
[1645239341526,1.01956964,2820.7,2820.5,0.00440238]
[1645239341728,1.01956964,2820.7,2820.1,0.00440238]
[1645239342530,1.01956964,2820.7,2820.2,0.95570596]
[1645239342531,0.01229293,2820.6,2820.2,0.95570596]
[1645239342730,0.01229293,2820.6,2820.3,0.00440238]
[1645239346273,0.89924293,2820.6,2820.3,0.00440238]
[1645239346474,0.89924293,2820.6,2819.9,0.00440238]
[1645239346475,1.41825584,2820.6,2819.9,0.00440238]
[1645239346879,2.41825584,2820.6,2819.9,0.00440238]
[1645239348273,3.30524584,2820.6,2819.9,0.00440238]
[1645239348474,3.30524584,2820.6,2819.9,0.98616529]
[1645239348677,1.53130584,2820.6,2820.0,3.5]
[1645239348935,0.53130584,2820.6,2820.1,0.00440238]
[1645239349930,0.25582917,2820.5,2820.2,1.24029916]
[1645239350133,0.25582917,2820.5,2820.3,0.00440238]
[1645239350333,0.00150369,2820.2,2820.1,0.00440238]
[1645239350535,0.22899569,2820.5,2820.4,1.06175149]
[1645239350730,0.53130584,2820.6,2820.4,1.06175149]
[1645239350933,1.41825584,2820.6,2820.4,1.06175149]
[1645239351131,1.41825584,2820.6,2820.1,0.00440238]
[1645239355679,1.41825584,2820.6,2819.9,0.00440238]
[1645239355680,2.09312897,2820.6,2819.9,0.00440238]
[1645239355879,0.8869936,2820.5,2819.9,0.00440238]
[1645239356524,0.8869936,2820.5,2820.0,1.16608028]
[1645239356722,2.30524584,2820.6,2820.1,3.50440238]
[1645239356922,2.30524584,2820.6,2820.2,0.00440238]
[1645239357921,1.4321046,2820.6,2820.2,0.00440238]
[1645239358725,0.5451546,2820.6,2820.2,0.00440238]
[1645239360277,2.10697773,2820.6,2820.2,0.00440238]
[1645239362374,2.08083604,2820.6,2819.9,0.00440238]
[1645239362577,2.08083604,2820.6,2820.3,0.01229047]
[1645239363177,1.19388604,2820.6,2820.3,0.01229047]
[1645239363376,0.51901291,2820.6,2820.3,0.01229047]
[1645239367227,1.40598291,2820.6,2820.3,0.01229047]
[1645239367885,1.40598291,2820.6,2820.0,0.00440238]
[1645239367886,0.01577644,2820.5,2820.0,0.00440238]
[1645239368882,0.88702,2820.4,2820.0,0.00440238]
[1645239369283,0.01577644,2820.5,2820.0,0.00440238]
[1645239369284,0.15778444,2820.5,2820.0,0.00440238]
[1645239369487,0.01577644,2820.5,2820.0,0.00440238]
[1645239370492,0.25598955,2820.4,2820.1,1.24352736]
[1645239370686,0.25598955,2820.4,2820.2,0.00307704]
[1645239370888,0.25598955,2820.4,2820.2,1.2466044]
[1645239371086,0.25598955,2820.4,2820.0,0.00307704]
[1645239371323,1.14300955,2820.4,2820.0,1.24716563]
[1645239371524,1.14304255,2820.3,2820.1,0.00307704]
[1645239371724,0.25598955,2820.2,2819.9,1.24637301]
[1645239373127,0.39801255,2820.2,2819.9,1.24637301]
[1645239373323,0.25598955,2820.1,2819.9,1.24637301]
[1645239373725,0.25598955,2820.0,2819.9,1.24637301]
[1645239373925,0.93086268,2820.3,2819.9,1.24434598]
[1645239374124,0.25598955,2820.2,2819.9,1.24434598]
[1645239374324,0.25598955,2820.1,2820.0,0.00439004]
[1645239374526,0.93086268,2820.3,2820.0,1.24873602]
[1645239374730,0.93086268,2820.3,2820.1,1.24434598]
[1645239374927,0.93086268,2820.3,2819.9,0.00439004]
[1645239375180,1.23086268,2820.3,2820.0,1.24500593]
[1645239375382,0.25598955,2820.2,2820.1,0.00439004]
[1645239375582,0.25598955,2820.2,2820.1,1.24500593]
[1645239376182,0.25598955,2820.2,2819.7,0.00439004]
[1645239376183,0.25598955,2820.2,2819.8,1.24500593]
[1645239376384,0.25598955,2820.2,2819.9,0.00439004]
[1645239376583,0.25598955,2820.2,2820.0,1.24500593]
[1645239376983,0.25598955,2820.2,2820.1,1.24500593]
[1645239377282,0.25598955,2820.2,2819.8,1.24500593]
[1645239377582,0.25598955,2820.2,2819.9,0.00439004]
[1645239377781,0.03135622,2820.0,2819.9,0.00439004]
[1645239377982,0.28734577,2820.0,2819.9,1.24475354]
[1645239378582,0.28734577,2820.0,2819.8,1.24475354]
[1645239378822,0.03135622,2820.0,2819.9,1.24475354]
[1645239379021,0.03135622,2820.0,2819.8,1.24475354]
[1645239379420,0.25643776,2819.9,2819.8,1.24475354]
[1645239382576,0.27207842,2819.9,2819.8,1.24475354]
[1645239390279,0.27207842,2819.9,2819.8,4.74475354]
[1645239390687,0.01569293,2820.0,2819.9,5.5]
[1645239390884,0.01569293,2820.0,2819.9,9.0]
[1645239391680,1.69444277,2820.7,2820.4,1.10753871]
[1645239392484,1.83644177,2820.7,2820.4,1.10753871]
[1645239393930,1.69444277,2820.7,2820.4,1.10753871]
[1645239396530,1.83644177,2820.7,2820.4,1.10753871]
[1645239396929,1.69444277,2820.7,2820.4,1.10753871]
[1645239397330,1.69444277,2820.7,2820.2,0.89723562]
[1645239397579,1.69444277,2820.7,2820.6,0.01369594]
[1645239399485,0.67487313,2820.7,2820.6,0.01369594]
[1645239400283,0.81687213,2820.7,2820.6,0.01369594]
[1645239401083,0.67487313,2820.7,2820.6,0.01369594]
[1645239402725,0.67487313,2820.7,2820.2,0.01043562]
[1645239403932,0.81688613,2820.7,2820.2,0.01043562]
[1645239404329,0.67487313,2820.7,2820.2,0.01043562]
[1645239405083,0.67487313,2820.7,2820.2,3.51043562]
[1645239406083,0.67487313,2820.7,2820.2,0.01043562]
[1645239410830,0.92709425,2820.7,2820.3,1.24911189]
[1645239414279,1.81403345,2820.7,2820.3,1.24911189]
[1645239414481,0.25222112,2820.6,2820.3,1.24911189]
[1645239415281,0.25222112,2820.6,2820.3,1.24751317]
[1645239416528,1.77388,2820.9,2820.4,3.49602998]
[1645239416529,0.67487313,2820.9,2820.4,3.49602998]
[1645239416923,0.67487313,2821.0,2820.2,3.51043562]
[1645239417923,0.67487313,2821.0,2820.6,1.88276021]
[1645239418822,0.67487313,2821.0,2820.6,1.25036189]
[1645239420079,0.81686513,2821.0,2820.7,3.5]
[1645239420284,1.2352,2821.2,2820.7,3.5]
[1645239420285,0.67487313,2821.2,2820.7,3.5]
[1645239420479,1.4339572,2821.4,2820.7,3.5]
[1645239420480,0.67487313,2821.3,2820.7,3.5]
[1645239420878,0.67487313,2821.2,2820.7,3.5]
[1645239421278,0.67487313,2821.2,2820.7,5.2731]
[1645239422478,0.67487313,2821.2,2820.7,5.28664716]
[1645239423277,0.67487313,2821.2,2820.7,1.78664716]
[1645239423679,0.81685513,2821.2,2820.7,1.78664716]
[1645239423932,0.67487313,2821.1,2820.7,0.01354716]
[1645239424329,0.67487313,2821.2,2820.7,0.01354716]
[1645239427584,0.81685913,2821.2,2820.7,0.01354716]
[1645239428577,0.81685913,2821.2,2820.7,0.90019716]
[1645239429176,0.67487313,2821.2,2820.7,0.90019716]
[1645239429376,3.6,2821.2,2820.7,0.90019716]
[1645239429577,3.6,2821.2,2820.7,4.40019716]
[1645239429976,3.6,2821.2,2820.7,0.90019716]
[1645239430176,3.6,2821.2,2820.7,4.40019716]
[1645239430576,3.6,2821.2,2820.7,0.90019716]
[1645239430977,3.6,2821.2,2820.7,4.40019716]
[1645239431730,3.741979,2821.2,2820.7,4.40019716]
[1645239431928,3.741979,2821.2,2820.7,0.90019716]
[1645239432330,3.6,2821.2,2820.7,0.88665]
[1645239434933,3.6,2821.2,2820.7,4.38665]
[1645239435379,0.24032728,2821.1,2820.8,1.25811076]
[1645239436178,0.67728178,2821.2,2820.8,1.25811076]
[1645239439626,0.81926378,2821.2,2820.6,1.25036189]
[1645239440928,0.81926378,2821.2,2820.7,3.5]
[1645239441131,0.81926378,2821.2,2820.6,1.25036189]
[1645239441529,0.81926378,2821.2,2820.7,3.5]
[1645239441727,0.81926378,2821.2,2820.6,1.25036189]
[1645239441927,0.81926378,2821.2,2820.7,3.5]
[1645239443281,0.81926378,2821.2,2820.6,1.25036189]
[1645239443684,0.81926378,2821.2,2820.6,0.99609021]
[1645239445481,1.70604878,2821.2,2820.6,0.99609021]
[1645239445682,0.8868,2821.1,2820.6,0.99609021]
[1645239447328,2.38092191,2821.2,2820.5,0.88675]
[1645239447627,1.70604878,2821.2,2820.5,0.88675]
[1645239447827,2.38092191,2821.2,2820.5,0.88675]
[1645239448027,1.70604878,2821.2,2820.5,0.88675]
[1645239448426,1.70604878,2821.2,2820.5,2.04879496]
[1645239450275,0.81926378,2821.2,2820.5,2.04879496]
[1645239451775,1.70604848,2821.2,2820.5,2.04879496]
[1645239452277,2.38092161,2821.2,2820.5,2.04879496]
[1645239452477,2.38092161,2821.2,2820.7,0.01381491]
[1645239453960,1.49413691,2821.2,2820.7,0.01381491]
[1645239455355,1.49413691,2821.2,2820.8,0.8867]
[1645239456157,0.2431739,2821.1,2820.9,1.25724078]
[1645239456359,0.2431739,2821.1,2821.0,1.25736216]
[1645239456760,0.00088262,2821.0,2820.8,0.8867]
[1645239457259,0.00088262,2821.0,2820.9,1.25736149]
[1645239457463,0.00088262,2821.0,2820.9,1.25735663]
[1645239457689,0.00088262,2821.0,2820.9,1.25720912]
[1645239457896,0.00088262,2821.0,2820.9,1.25735167]
[1645239458088,0.00088262,2821.0,2820.9,1.25732891]
[1645239458291,0.00088262,2821.0,2820.9,1.25718557]
[1645239458489,0.00088262,2821.0,2820.7,1.77325]
[1645239458889,0.00088262,2821.0,2820.8,1.25713817]
[1645239459096,0.00088262,2821.0,2820.7,1.77325]
[1645239459290,0.00088262,2821.0,2820.9,1.25723142]
[1645239459492,0.00088262,2821.0,2820.8,1.25721416]
[1645239459694,0.00088262,2821.0,2820.7,1.77325]
[1645239460093,0.67575575,2821.0,2820.8,1.25806539]
[1645239460292,0.67575575,2821.0,2820.7,1.77325]
[1645239460492,0.67575575,2821.0,2820.8,1.2580922]
[1645239460691,0.67575575,2821.0,2820.7,1.77325]
[1645239461191,0.67575575,2821.0,2820.8,1.25807713]
[1645239461426,0.67575575,2821.0,2820.7,1.77325]
[1645239461630,0.67575575,2821.0,2820.9,1.25802563]
[1645239461827,0.67575575,2821.0,2820.8,1.25802574]
[1645239462028,0.67575575,2821.0,2820.9,1.25827856]
[1645239462228,0.67575575,2821.0,2820.8,1.2582415]
[1645239462427,0.67575575,2821.0,2820.7,1.77325]
[1645239462628,0.67575575,2821.0,2820.8,1.25823981]
[1645239462829,0.67575575,2821.0,2820.7,1.77325]
[1645239463028,0.67575575,2821.0,2820.8,1.25825251]
[1645239463231,0.67575575,2821.0,2820.7,1.77325]
[1645239463632,0.67575575,2821.0,2820.8,1.25825804]
[1645239463830,0.67575575,2821.0,2820.9,1.25852419]
[1645239464030,0.67575575,2821.0,2820.9,1.25852255]
[1645239464432,0.67575575,2821.0,2820.8,1.25854824]
[1645239464633,0.67575575,2821.0,2820.9,1.25854302]
[1645239464832,0.67575575,2821.0,2820.8,1.25854051]
[1645239465085,0.67575575,2821.0,2820.7,1.77325]
[1645239465775,0.67575575,2821.0,2820.8,1.25854557]
[1645239465976,0.67575575,2821.0,2820.7,1.77325]
[1645239466379,0.67575575,2821.0,2820.8,1.25855032]
[1645239466576,0.67575575,2821.0,2820.9,1.25854964]
[1645239466779,0.67575575,2821.0,2820.9,1.25851399]
[1645239466976,0.67575575,2821.0,2820.9,1.25851065]
[1645239467177,0.67575575,2821.0,2820.9,1.2585117]
[1645239467376,0.67575575,2821.0,2820.8,1.25851012]
[1645239467577,0.67575575,2821.0,2820.9,1.2585148]
[1645239467781,0.67575575,2821.0,2820.8,1.25851398]
[1645239467980,0.67575575,2821.0,2820.9,1.25849888]
[1645239468179,0.67575575,2821.0,2820.8,1.25847006]
[1645239468381,0.67575575,2821.0,2820.9,1.25848055]
[1645239468580,0.67575575,2821.0,2820.8,1.25846201]
[1645239468834,0.67575575,2821.0,2820.7,1.77325]
[1645239469234,0.67575575,2821.0,2820.5,1.16204496]
[1645239469439,0.67575575,2821.0,2820.6,2.14527886]
[1645239469636,0.67575575,2821.0,2820.7,1.25849886]
[1645239474478,0.91892965,2821.0,2820.7,1.25849886]
[1645239474683,0.2431739,2820.9,2820.7,1.25849886]
[1645239474877,0.2431739,2820.8,2820.6,0.88678]
[1645239475080,0.2431739,2820.7,2820.6,0.88678]
[1645239475481,0.2431739,2820.7,2820.6,2.1449995]
[1645239476080,0.67575575,2821.0,2820.6,2.1449995]
[1645239476339,0.67575575,2821.0,2820.7,1.2582195]
[1645239479845,0.91944588,2821.0,2820.7,1.2582195]
[1645239480389,0.91856326,2820.9,2820.8,1.25692559]
[1645239480589,0.91856326,2820.9,2820.7,1.25687085]
[1645239480887,0.24369013,2820.8,2820.6,0.88678]
[1645239481087,0.67487313,2820.9,2820.7,1.25681662]
[1645239481287,0.67487313,2820.9,2820.8,1.25675786]
[1645239481491,0.67487313,2820.9,2820.8,1.25667147]
[1645239481687,0.9195105,2821.0,2820.8,1.2565851]
[1645239481886,0.24375475,2820.9,2820.8,0.88669]
[1645239482290,0.67575575,2821.0,2820.9,0.01379592]
[1645239482688,0.67575575,2821.0,2820.9,1.27033966]
[1645239482887,0.67575575,2821.0,2820.9,1.27033984]
[1645239483087,0.67575575,2821.0,2820.9,0.01379592]
[1645239483088,0.2446358,2821.0,2820.9,0.01379592]
[1645239483289,0.2446358,2821.0,2820.9,1.27034229]
[1645239483490,0.67770621,2821.0,2820.9,0.01379592]
[1645239483688,0.2446358,2821.0,2820.9,1.27013024]
[1645239483936,0.2446358,2821.0,2820.9,2.32198368]
[1645239484141,0.00088262,2821.0,2820.9,5.82170557]
[1645239484345,2.359e-05,2821.3,2821.0,0.2446]
[1645239484536,4.12073085,2821.8,2821.0,1.13101]
[1645239484733,0.00508527,2821.7,2821.1,4.02]
[1645239485331,0.00508527,2821.7,2821.6,0.9254545]
[1645239485535,0.00508527,2821.8,2821.6,0.63803237]
[1645239485737,0.89983085,2821.9,2821.6,0.63803237]
[1645239485935,3.6,2821.7,2821.6,0.63803237]
[1645239491093,0.00508527,2822.0,2821.7,4.5]
[1645239491352,0.00508527,2822.0,2821.7,6.57712]
[1645239491749,0.00508527,2822.2,2821.7,6.57712]
[1645239491947,0.01278997,2822.4,2821.7,6.57712]
[1645239492349,0.0077047,2822.4,2821.7,6.57712]
[1645239492748,0.00508527,2822.6,2821.7,6.57712]
[1645239492953,0.01278966,2822.6,2821.7,6.26562]
[1645239493948,0.00508527,2822.6,2821.7,6.26562]
[1645239494349,0.67381875,2822.5,2821.7,6.26562]
[1645239494549,0.00508527,2822.4,2821.7,6.26562]
[1645239495692,0.00508527,2822.4,2821.8,1.07359431]
[1645239496294,0.67381875,2822.6,2821.8,1.07359431]
[1645239496295,0.67890402,2822.6,2821.8,1.07359431]
[1645239496495,0.67890402,2822.6,2821.9,0.8863]
[1645239496898,3.33794672,2822.6,2821.8,1.07359431]
[1645239497095,3.33794672,2822.6,2821.7,4.5]
[1645239497096,0.67381875,2822.5,2821.7,4.5]
[1645239497295,0.00508527,2822.4,2821.7,4.5]
[1645239497898,0.89148537,2822.4,2821.7,4.5]
[1645239498297,0.89148537,2822.4,2821.7,5.65613895]
[1645239498500,1.77789537,2822.4,2821.7,5.65613895]
[1645239498937,5.37789537,2822.4,2821.7,5.65613895]
[1645239501138,5.37789537,2822.4,2821.6,1.77258]
[1645239501340,5.37789537,2822.4,2821.4,2.94581]
[1645239501341,0.88646,2822.2,2821.4,2.94581]
[1645239501541,0.00508527,2822.1,2821.4,1.1731]
[1645239502603,0.88652,2822.0,2821.4,1.1731]
[1645239502792,0.00508527,2821.9,2821.2,2.9051691]
[1645239503690,0.8865049,2822.1,2821.2,2.9051691]
[1645239503890,0.00508527,2822.0,2821.2,2.9051691]
[1645239504290,0.22690668,2821.9,2821.3,1.26274072]
[1645239504491,0.00508527,2821.8,2821.3,1.26274072]
[1645239504791,0.22690668,2821.7,2821.3,1.26274072]
[1645239505293,0.23199195,2821.6,2821.3,1.26274072]
[1645239505491,0.00508527,2822.0,2821.3,1.26274072]
[1645239505691,0.22967185,2821.9,2821.3,1.26274072]
[1645239505892,0.00508527,2821.8,2821.3,1.26274072]
[1645239506095,0.22967185,2821.7,2821.3,1.26274072]
[1645239506637,0.23475712,2821.6,2821.3,1.26274072]
[1645239506836,0.22820585,2821.5,2821.3,1.26274072]
[1645239507036,0.00508527,2821.9,2821.3,1.26274072]
[1645239508139,0.00508527,2821.9,2821.2,2.9051691]
[1645239509340,0.89164207,2821.9,2821.2,1.1322691]
[1645239509938,4.49164207,2821.9,2821.2,1.1322691]
[1645239510188,0.88659,2821.8,2821.2,1.1322691]
[1645239510487,0.89169697,2821.7,2821.0,3.1332]
[1645239511086,0.00508527,2821.7,2821.0,3.1332]
[1645239511291,0.00508527,2821.8,2821.0,3.1332]
[1645239511692,3.50508527,2821.8,2821.0,4.0197]
[1645239511890,0.00508527,2821.8,2821.0,4.0197]
[1645239512591,0.00508527,2821.8,2821.4,0.01330655]
[1645239512787,0.00508527,2821.8,2821.4,0.00910301]
[1645239514139,0.14705827,2821.8,2821.4,0.00910301]
[1645239514343,0.00508527,2821.8,2821.4,0.00910301]
[1645239517789,0.14705327,2821.8,2821.4,0.00910301]
[1645239517989,0.0157982,2821.7,2821.4,0.88881626]
[1645239518190,0.0157982,2821.7,2821.4,0.88641]
[1645239518394,0.0157982,2821.7,2820.9,1.14479592]
[1645239519493,0.88672,2821.5,2820.9,1.14479592]
[1645239519795,0.00508527,2821.6,2820.9,0.01379592]
[1645239520192,0.0157982,2821.7,2820.9,0.01379592]
[1645239520995,0.0157982,2821.7,2820.9,1.16551233]
[1645239521194,0.0157982,2821.7,2820.9,2.05203233]
[1645239521648,0.67381875,2821.5,2820.9,0.01379592]
[1645239521838,0.67381875,2821.3,2820.9,0.01379592]
[1645239522036,2.96769875,2821.2,2820.9,0.01379592]
[1645239522336,2.86072635,2821.1,2820.9,0.01379592]
[1645239523138,0.97381875,2821.0,2820.9,0.01379592]
[1645239523535,0.3,2821.0,2820.9,0.01379592]
[1645239523735,4.47381875,2821.0,2820.9,0.01379592]
[1645239524143,5.47381875,2821.0,2820.9,0.01379592]
[1645239525591,5.61585175,2821.0,2820.9,0.01379592]
[1645239525991,5.47381875,2821.0,2820.9,0.01379592]
[1645239526696,4.8,2821.0,2820.9,0.01379592]
[1645239527691,4.81824705,2821.0,2820.9,0.01379592]
[1645239528092,5.05282463,2821.0,2820.9,0.01379592]
[1645239528693,5.72664338,2821.0,2820.9,0.01379592]
[1645239528953,5.05282463,2821.0,2820.9,0.01379592]
[1645239530044,1.55282463,2821.0,2820.9,0.01379592]
[1645239530447,5.05282463,2821.0,2820.9,0.01379592]
[1645239530649,2.07282463,2821.0,2820.9,9.592e-05]
[1645239530946,4.04454338,2821.0,2820.9,9.592e-05]
[1645239531146,3.37072463,2821.0,2820.9,9.592e-05]
[1645239532175,4.04292981,2821.0,2820.9,9.592e-05]
[1645239532346,7.64292981,2821.0,2820.9,9.592e-05]
[1645239532603,0.887107,2820.6,2820.1,0.00436679]
[1645239532793,0.23457758,2820.5,2819.8,0.00436679]
[1645239532992,3.73457758,2820.5,2819.9,1.25287962]
[1645239533194,0.23457758,2820.4,2820.0,0.00436679]
[1645239533393,0.23457758,2820.3,2820.0,0.00436679]
[1645239533593,0.142042,2820.5,2819.8,0.00436679]
[1645239533795,0.23422174,2820.4,2819.9,1.25289643]
[1645239533994,0.23422174,2820.3,2820.0,0.00436679]
[1645239534196,0.88712,2820.3,2820.0,0.00436679]
[1645239534396,0.88712,2820.3,2819.8,0.00436679]
[1645239534602,2.6613579,2820.3,2819.9,1.2528932]
[1645239534799,2.6613579,2820.3,2820.0,0.00436679]
[1645239535199,1.52,2820.6,2819.8,0.00436679]
[1645239535398,0.23401982,2820.5,2819.9,1.25227302]
[1645239535597,0.23401982,2820.5,2820.0,0.00320529]
[1645239535798,0.23401982,2820.5,2819.8,1.25567058]
[1645239535997,1.12099982,2820.5,2819.8,1.25567058]
[1645239536198,1.12104982,2820.4,2819.8,1.25567058]
[1645239536435,0.88703,2820.4,2819.8,1.25567058]
[1645239537437,0.8870497,2820.3,2819.8,1.25567058]
[1645239540288,1.7740797,2820.3,2819.8,1.25567058]
[1645239540689,1.04061047,2820.4,2819.8,1.25567058]
[1645239541291,0.15358047,2820.4,2819.8,1.25567058]
[1645239542498,0.142042,2820.4,2820.1,0.01203297]
[1645239543836,0.142042,2820.4,2819.6,3.92134804]
[1645239544034,0.142042,2820.4,2819.8,0.00434589]
[1645239544235,0.142042,2820.4,2819.9,1.25315864]
[1645239544435,3.742042,2820.4,2820.0,0.00434589]
[1645239546939,0.88703,2820.3,2820.0,0.00434589]
[1645239547138,1.7740717,2820.3,2819.7,0.00434589]
[1645239547340,1.7740717,2820.3,2819.8,1.25358065]
[1645239547608,1.79405623,2820.3,2819.9,0.00434589]
[1645239547795,1.79405623,2820.3,2819.6,3.3124096]
[1645239547996,1.79405623,2820.3,2819.9,0.00432447]
[1645239548196,1.79405623,2820.3,2819.7,0.00432447]
[1645239548396,1.79405623,2820.3,2819.8,1.26712621]
[1645239548597,0.90701453,2820.3,2819.9,1.26280174]
[1645239549795,0.01998453,2820.3,2819.9,1.26280174]
[1645239552146,0.16203153,2820.3,2819.9,1.26280174]
[1645239552447,0.01998453,2820.3,2819.9,1.26280174]
[1645239553852,0.22493205,2820.2,2819.9,1.26280174]
[1645239554053,0.01998453,2820.3,2819.9,1.26280174]
[1645239554653,0.22493017,2820.2,2819.9,1.26280174]
[1645239554852,0.01998453,2820.3,2819.9,1.26280174]
[1645239555492,0.22506587,2820.2,2819.9,1.26280174]
[1645239556090,0.16203153,2820.3,2819.9,1.26280174]
[1645239557388,0.01998453,2820.3,2819.9,1.26280174]
[1645239557993,0.01998453,2820.3,2819.8,0.00432447]
[1645239558190,0.2251722,2820.2,2819.9,1.26523443]
[1645239559039,0.01998453,2820.3,2819.9,1.26523443]
[1645239559241,0.2252262,2820.2,2819.9,1.26523443]
[1645239559842,0.3672722,2820.2,2819.9,1.26523443]
[1645239560043,0.142046,2820.2,2819.9,1.26523443]
[1645239560243,0.01998453,2820.3,2819.9,1.26523443]
[1645239560443,0.2281779,2820.2,2819.9,1.26523443]
[1645239562345,0.01176057,2820.1,2819.9,1.26523443]
[1645239562596,0.22863153,2820.0,2819.9,1.26523443]
[1645239562799,0.01176057,2820.1,2819.9,1.26523443]
[1645239562999,0.22858818,2820.0,2819.9,1.26523443]
[1645239563202,0.01176057,2820.1,2819.9,1.26523443]
[1645239563396,0.22858861,2820.0,2819.9,1.26523443]
[1645239563598,0.2285892,2820.0,2819.9,1.26523443]
[1645239563797,0.01176057,2820.1,2819.9,1.26523443]
[1645239563997,0.22858817,2820.0,2819.9,1.26523443]
[1645239564199,0.22858254,2820.0,2819.9,1.26523443]
[1645239564398,0.22859201,2820.0,2819.9,1.26523443]
[1645239564601,0.01176057,2820.1,2819.9,1.26523443]
[1645239564798,0.22856328,2820.0,2819.9,1.26523443]
[1645239565001,0.01176057,2820.1,2819.9,1.26523443]
[1645239565199,0.2285807,2820.0,2819.9,1.26523443]
[1645239565400,0.22860952,2820.0,2819.9,1.26523443]
[1645239565599,0.01176057,2820.1,2819.9,1.26523443]
[1645239567143,0.25264574,2820.0,2819.9,1.26523443]
[1645239567346,0.02351206,2820.0,2819.9,1.26523443]
[1645239567543,0.25264564,2820.0,2819.9,1.26523443]
[1645239567744,0.16555806,2820.0,2819.9,1.26523443]
[1645239567943,0.25264246,2820.0,2819.9,1.26523443]
[1645239568143,0.02351206,2820.0,2819.9,1.26523443]
[1645239568544,0.25267463,2820.0,2819.9,1.26523443]
[1645239568746,0.02351206,2820.0,2819.9,1.26523443]
[1645239568944,0.25267641,2820.0,2819.9,1.26523443]
[1645239569145,0.25267423,2820.0,2819.9,1.26523443]
[1645239569345,0.02351206,2820.0,2819.9,1.26523443]
[1645239569545,0.25267726,2820.0,2819.9,1.26523443]
[1645239569846,0.25178253,2820.0,2819.9,1.26523443]
[1645239570096,0.25180039,2820.0,2819.9,1.26523443]
[1645239570289,0.02261691,2820.0,2819.9,1.26523443]
[1645239570490,0.25179891,2820.0,2819.9,1.26523443]
[1645239570693,0.02261691,2820.0,2819.9,1.26523443]
[1645239570895,0.16466491,2820.0,2819.9,1.26523443]
[1645239571096,0.39387494,2820.0,2819.9,1.26523443]
[1645239571291,0.16466491,2820.0,2819.9,1.26523443]
[1645239571992,0.39387941,2820.0,2819.9,1.26523443]
[1645239572192,0.16466491,2820.0,2819.9,1.26523443]
[1645239572493,0.37125882,2820.0,2819.9,1.26523443]
[1645239572691,0.37125837,2820.0,2819.9,1.26523443]
[1645239572902,0.142048,2820.0,2819.9,1.26523443]
[1645239573400,0.37130407,2820.0,2819.9,1.26523443]
[1645239573595,0.142048,2820.0,2819.9,1.26523443]
[1645239574739,0.37139077,2820.0,2819.9,1.26523443]
[1645239575040,0.37138704,2820.0,2819.9,1.26523443]
[1645239575239,0.142048,2820.0,2819.9,1.26523443]
[1645239575641,0.37138835,2820.0,2819.9,1.26523443]
[1645239575840,0.37138421,2820.0,2819.9,1.26523443]
[1645239576043,0.142048,2820.0,2819.9,1.26523443]
[1645239576240,0.37138574,2820.0,2819.9,1.26523443]
[1645239576440,0.142048,2820.0,2819.9,1.26523443]
[1645239576941,0.37138591,2820.0,2819.9,1.26523443]
[1645239577140,0.142048,2820.0,2819.9,1.26523443]
[1645239577340,0.37140019,2820.0,2819.9,1.26523443]
[1645239577590,0.40583638,2820.0,2819.9,1.26523443]
[1645239577791,0.1764955,2820.0,2819.9,1.26523443]
[1645239577994,0.4058393,2820.0,2819.9,1.26523443]
[1645239578191,0.1764955,2820.0,2819.9,1.26523443]
[1645239578697,0.40582986,2820.0,2819.9,1.26523443]
[1645239578898,0.1764955,2820.0,2819.9,1.26523443]
[1645239579097,0.40583233,2820.0,2819.9,1.26523443]
[1645239579295,0.1764955,2820.0,2819.9,1.26523443]
[1645239579497,0.40583407,2820.0,2819.9,1.26523443]
[1645239579695,0.1764955,2820.0,2819.9,1.26523443]
[1645239579895,0.40583749,2820.0,2819.9,1.26523443]
[1645239580095,0.1764955,2820.0,2819.9,1.26523443]
[1645239580295,0.40582811,2820.0,2819.9,1.26523443]
[1645239580495,3.33342428,2820.3,2820.0,0.51141284]
[1645239580696,0.23263492,2820.2,2820.1,1.26523443]
[1645239581095,0.23263492,2820.3,2820.1,1.26523443]
[1645239581346,0.23263492,2820.3,2820.1,1.2695589]
[1645239581542,0.142046,2820.2,2820.1,1.2695589]